bitfinex-derivatives/quotes_BNBF0:USTF0_20250907
["timestamp","ask_amount","ask_price","bid_price","bid_amount"]
[1757252836612,2.5770339,871.19,868.92,1.757]
[1757252837113,2.5770339,870.61,868.92,1.757]
[1757252837310,2.5770339,870.61,868.91,0.19977382]
[1757252838217,2.5770339,870.39,868.91,0.19977382]
[1757252838717,2.5770339,870.38,868.91,0.19977382]
[1757252839821,2.5770339,870.38,868.92,2.045]
[1757252840321,1.5467907,869.59,868.92,2.045]
[1757252840616,0.1162895,869.59,868.92,2.045]
[1757252840823,2.5770339,870.39,868.92,2.045]
[1757252842322,1.0311751,869.54,868.92,2.045]
[1757252844419,1.0311751,869.56,868.92,2.045]
[1757252846324,1.0311751,869.55,868.92,2.045]
[1757252846524,0.80325411,869.55,868.92,2.045]
[1757252847021,2.5770339,870.41,868.92,2.045]
[1757252847520,2.5770339,870.42,868.92,2.045]
[1757252848125,2.5770339,870.4,868.92,2.045]
[1757252848523,2.5770339,870.5,868.92,2.045]
[1757252850726,2.5770339,870.41,868.92,2.045]
[1757252852225,2.5770339,870.39,868.92,2.045]
[1757252854226,2.5770339,870.4,868.92,2.045]
[1757252854927,2.5770339,870.43,868.92,2.045]
[1757252855332,2.5770339,870.63,868.92,2.045]
[1757252856434,2.5770339,870.62,868.92,2.045]
[1757252857328,5.1512535,871.62,868.92,2.045]
[1757252857532,0.19971248,871.55,868.92,2.045]
[1757252857728,1.1465235,871.54,868.92,2.045]
[1757252858031,1.1465235,871.53,868.92,2.045]
[1757252858228,1.1465235,871.52,868.92,2.045]
[1757252858532,1.1465235,871.51,868.92,2.045]
[1757252858733,1.1465235,871.5,868.92,2.045]
[1757252858934,1.1465235,871.49,868.92,2.045]
[1757252859135,1.1465235,871.48,868.92,2.045]
[1757252859436,1.1465235,871.47,868.92,2.045]
[1757252859731,1.1465235,871.46,868.92,2.045]
[1757252859936,1.1465235,871.45,868.92,2.045]
[1757252860133,1.1465235,871.44,868.92,2.045]
[1757252860333,1.1465235,871.43,868.92,2.045]
[1757252860631,1.5459985,870.38,868.92,2.045]
[1757252861233,1.5459985,870.34,868.92,2.045]
[1757252861737,1.5459985,870.23,868.92,2.045]
[1757252862335,1.5459985,870.24,868.92,2.045]
[1757252862532,1.5459985,870.22,868.92,2.045]
[1757252862737,1.5459985,870.2,868.92,2.045]
[1757252864135,1.5459985,870.11,868.92,2.045]
[1757252864535,1.5459985,870.18,868.94,0.76801841]
[1757252864937,1.5459985,870.17,868.94,0.76801841]
[1757252865535,1.5459985,870.12,868.95,0.76801841]
[1757252866039,1.5459985,870.08,868.97,0.76801841]
[1757252866237,1.5459985,870.08,868.96,0.76801841]
[1757252866837,1.5459985,870.08,868.97,0.76801841]
[1757252867038,1.5459985,870.06,868.97,0.76801841]
[1757252867241,1.5459985,870.02,868.98,0.76801841]
[1757252868542,1.21030584,870.02,868.98,0.76801841]
[1757252868741,1.21030584,870.01,868.98,0.76801841]
[1757252869146,2.5770339,870.72,869.01,0.76801841]
[1757252869441,2.5770339,870.53,869.01,0.76801841]
[1757252869642,2.5770339,870.53,869.02,0.76801841]
[1757252869841,2.5770339,870.54,869.02,0.76801841]
[1757252870041,2.5770339,870.54,869.01,0.76801841]
[1757252870540,3.6058774,870.84,869.01,0.76801841]
[1757252870541,2.5770339,870.57,869.01,0.76801841]
[1757252870844,2.5770339,870.57,868.98,0.76801841]
[1757252871041,2.5770339,871.02,868.97,0.76801841]
[1757252872444,3.6058774,871.45,869.02,0.76801841]
[1757252872848,0.19971248,871.55,869.02,0.76801841]
[1757252873242,0.19971248,871.55,869.01,0.76801841]
[1757252874345,0.19971248,871.55,868.92,2.81301841]
[1757252874551,2.5770339,871.54,868.92,2.81301841]
[1757252875149,2.5770339,871.54,868.92,0.76801841]
[1757252875350,2.5770339,871.54,868.91,0.96779223]
[1757252875548,2.77674638,871.55,868.91,0.96779223]
[1757252876051,2.5770339,871.54,868.91,0.96779223]
[1757252876452,1.028876,870.18,868.91,0.96779223]
[1757252878249,1.028876,870.18,868.92,1.938]
[1757252878453,1.028876,870.19,868.92,1.938]
[1757252879152,1.028876,870.14,868.92,2.70627214]
[1757252879354,1.028876,870.15,868.92,2.70627214]
[1757252879655,1.028876,870.13,868.93,0.76827214]
[1757252880855,1.028876,870.14,868.92,2.70627214]
[1757252881155,1.028876,870.15,868.92,2.70627214]
[1757252882155,1.028876,870.15,868.92,1.938]
[1757252882354,1.028876,870.08,868.94,0.76827214]
[1757252883960,1.028876,870.07,868.94,0.76827214]
[1757252884456,1.028876,870.08,868.95,0.76827214]
[1757252884956,1.028876,870.07,868.95,0.76827214]
[1757252885256,1.028876,870.06,868.95,0.76827214]
[1757252885656,1.028876,870.25,868.95,0.76827214]
[1757252885859,1.028876,870.25,868.92,1.938]
[1757252888160,1.028876,870.26,868.92,1.938]
[1757252888856,1.028876,870.25,868.92,1.938]
[1757252889061,1.028876,870.26,868.92,1.938]
[1757252889259,1.028876,870.24,868.92,1.938]
[1757252889758,1.028876,870.29,868.92,1.938]
[1757252891162,1.028876,870.3,868.92,1.938]
[1757252891362,1.028876,870.29,868.92,1.938]
[1757252891665,1.028876,870.3,868.92,1.938]
[1757252894368,1.028876,870.34,868.92,1.938]
[1757252895468,1.028876,870.18,868.97,0.76827214]
[1757252896274,1.028876,870.31,868.93,0.76827214]
[1757252897773,1.028876,870.3,868.93,0.76827214]
[1757252898073,1.028876,870.31,868.93,0.76827214]
[1757252898273,1.028876,870.3,868.93,0.76827214]
[1757252899175,1.028876,870.31,868.93,0.76827214]
[1757252899374,1.028876,870.3,868.93,0.76827214]
[1757252899573,1.028876,870.24,868.96,0.76827214]
[1757252901278,1.028876,870.37,868.91,0.19977382]
[1757252902681,1.028876,870.39,868.91,0.19977382]
[1757252902976,1.028876,870.51,868.95,0.76723432]
[1757252903278,1.028876,870.49,868.96,0.76723432]
[1757252903476,1.028876,870.48,868.96,0.76723432]
[1757252903875,1.028876,870.46,868.97,0.76723432]
[1757252904079,1.028876,870.5,869.01,0.76723432]
[1757252904277,1.028876,870.49,869.01,0.76723432]
[1757252904476,1.028876,870.6,869.12,0.76723432]
[1757252906581,1.028876,870.59,869.12,0.76723432]
[1757252906783,1.028876,870.51,869.15,0.76723432]
[1757252907080,1.028876,870.55,869.18,0.76723432]
[1757252907983,1.028876,870.54,869.19,0.76723432]
[1757252908583,0.19971821,871.76,869.18,0.76723432]
[1757252908584,1.028876,870.53,869.18,0.76723432]
[1757252909286,1.028876,870.52,869.18,0.76723432]
[1757252910981,1.028876,870.51,869.18,0.76723432]
[1757252912285,1.028876,870.45,869.21,0.76723432]
[1757252912580,1.028876,870.42,869.22,0.76723432]
[1757252912984,1.541594,870.64,869.02,1.292]
[1757252912985,0.77414143,870.26,869.29,0.76723432]
[1757252913682,0.77414143,870.26,869.3,0.76723432]
[1757252914182,1.541594,870.39,869.3,0.76723432]
[1757252914384,1.541594,870.39,869.16,1.0257033]
[1757252914385,1.541594,870.38,869.31,0.76723432]
[1757252914586,1.541594,870.26,869.18,0.76723432]
[1757252915389,1.541594,870.26,869.19,0.76723432]
[1757252916190,1.541594,870.26,869.04,1.0257033]
[1757252916389,1.541594,870.25,869.19,0.76699036]
[1757252918192,1.541594,870.26,869.19,0.76699036]
[1757252918391,1.541594,870.25,869.19,0.76699036]
[1757252918592,1.541594,870.31,869.17,0.76699036]
[1757252918989,1.541594,870.32,869.17,0.76699036]
[1757252920889,1.16849698,870.32,869.17,0.76699036]
[1757252921894,2.5770339,870.97,869.12,0.199693]
[1757252922093,3.6058774,871.29,869.12,0.199693]
[1757252922589,2.5770339,871.68,869.12,0.199693]
[1757252927692,2.5770339,871.68,869.1,0.76699036]
[1757252927898,2.5770339,871.68,869.09,0.76699036]
[1757252928191,2.5770339,871.69,869.09,0.76699036]
[1757252928397,2.5770339,871.69,869.1,0.76699036]
[1757252928697,2.5770339,871.68,869.1,0.76699036]
[1757252929197,2.5770339,871.67,869.11,0.76699036]
[1757252929994,2.5770339,871.67,869.1,0.76699036]
[1757252930298,2.5770339,871.67,869.11,0.76699036]
[1757252930898,2.5770339,871.67,869.02,1.292]
[1757252931099,2.5770339,871.67,869.1,0.76757496]
[1757252931300,2.5770339,871.67,869.11,0.76757496]
[1757252931497,2.5770339,871.66,869.11,0.76757496]
[1757252931700,2.5770339,871.66,869.17,0.76757496]
[1757252932001,2.5770339,871.23,869.17,0.76757496]
[1757252932597,2.5770339,871.22,869.18,0.76757496]
[1757252934503,2.5770339,871.22,869.12,0.76757496]
[1757252934701,2.5770339,871.22,869.02,1.292]
[1757252934702,2.5770339,871.14,869.02,1.292]
[1757252935205,2.5770339,871.99,869.02,1.292]
[1757252935401,1.1461754,871.98,869.02,1.292]
[1757252935702,1.1461754,871.97,869.02,1.292]
[1757252935901,1.1461754,871.96,869.02,1.292]
[1757252936205,0.19961167,871.71,869.37,0.19961167]
[1757252939204,1.1461762,871.7,869.37,0.19961167]
[1757252939407,2.5770339,871.66,869.37,0.19961167]
[1757252940309,2.5770339,871.61,869.37,0.19961167]
[1757252940909,1.5429385,870.53,869.37,0.19961167]
[1757252941204,1.5429385,870.52,869.37,0.19961167]
[1757252941510,1.5429385,870.5,869.37,0.19961167]
[1757252941809,1.5429385,870.36,869.37,0.19961167]
[1757252942208,1.5429385,870.24,869.37,0.19961167]
[1757252942410,1.5429385,870.23,869.37,0.19961167]
[1757252942910,1.0287115,870.04,869.37,0.19961167]
[1757252943205,0.78855852,870.04,869.37,0.19961167]
[1757252943405,1.5429385,870.21,869.37,0.19961167]
[1757252943612,1.5429385,870.22,869.37,0.19961167]
[1757252943910,1.5429385,870.16,869.37,0.19961167]
[1757252944113,1.5429385,870.14,869.37,0.19961167]
[1757252944312,1.5429385,870.15,869.37,0.19961167]
[1757252944511,1.5429385,870.14,869.37,0.19961167]
[1757252945222,1.5429385,870.15,869.37,0.19961167]
[1757252945713,1.5429385,870.14,869.37,0.19961167]
[1757252945913,1.5429385,870.13,869.37,0.19961167]
[1757252946313,2.5770339,870.8,869.37,0.19961167]
[1757252946314,1.5429385,870.24,869.37,0.19961167]
[1757252948815,1.5429385,870.27,869.37,0.19961167]
[1757252949713,1.5429385,870.25,869.37,0.19961167]
[1757252952118,1.5429385,870.24,869.37,0.19961167]
[1757252953621,1.5429385,870.25,869.37,0.19961167]
[1757252954217,1.5429385,870.24,869.37,0.19961167]
[1757252954420,1.5429385,870.43,869.37,0.19961167]
[1757252955619,1.5429385,870.44,869.37,0.19961167]
[1757252956124,1.5429385,870.43,869.37,0.19961167]
[1757252956424,1.16548952,870.31,869.37,0.19961167]
[1757252956821,2.5770339,870.96,869.37,0.19961167]
[1757252958126,2.5770339,871.03,869.37,0.19961167]
[1757252958326,2.5770339,871.03,869.38,1.751]
[1757252958523,2.5770339,871.02,869.38,1.751]
[1757252959226,2.5770339,871.08,869.38,1.751]
[1757252960225,2.5770339,871.09,869.38,1.751]
[1757252960628,2.5770339,871.14,869.38,1.751]
[1757252962129,2.5770339,871.08,869.39,0.76868488]
[1757252963028,2.5770339,871.08,869.38,1.751]
[1757252963227,2.5770339,870.99,869.38,1.751]
[1757252964327,2.5770339,871.25,869.38,1.751]
[1757252964831,2.5770339,871.1,869.38,1.751]
[1757252965233,2.5770339,871.11,869.38,1.751]
[1757252966429,2.5770339,871.13,869.38,1.751]
[1757252967033,2.5770339,871.15,869.38,1.751]
[1757252967333,2.5770339,871.12,869.38,1.751]
[1757252970430,2.5770339,871.14,869.38,1.751]
[1757252970934,2.5770339,871.12,869.38,1.751]
[1757252972035,2.5770339,871.13,869.38,1.751]
[1757252972637,2.5770339,871.2,869.38,1.751]
[1757252973035,1.0300227,870.15,869.38,1.751]
[1757252973233,0.7682949,870.15,869.38,1.751]
[1757252974038,2.5770339,871.25,869.38,1.751]
[1757252974337,2.5770339,871.22,869.38,1.751]
[1757252974736,2.5770339,871.19,869.38,1.751]
[1757252976337,1.5448808,870.33,869.38,1.751]
[1757252976637,1.5448808,870.32,869.38,1.751]
[1757252977037,1.5448808,870.35,869.38,1.751]
[1757252977241,1.5448808,870.36,869.38,1.751]
[1757252977442,1.5448808,870.35,869.38,1.751]
[1757252979440,1.5448808,870.39,869.38,1.751]
[1757252980341,1.5448808,870.37,869.38,1.751]
[1757252980742,1.5448808,870.71,869.38,1.751]
[1757252982452,1.5448808,870.7,869.38,1.751]
[1757252984550,1.5448808,870.73,869.38,1.751]
[1757252986056,1.5448808,870.74,869.38,1.751]
[1757252989260,1.5448808,870.73,869.38,1.751]
[1757252990561,1.5448808,870.47,869.38,1.751]
[1757252991061,2.5770339,871.49,869.38,1.751]
[1757252991062,1.5448808,870.5,869.38,1.751]
[1757252992060,1.5448808,870.41,869.38,1.751]
[1757252992262,1.5448808,870.4,869.38,1.751]
[1757252992762,1.5448808,870.36,869.38,1.751]
[1757252992960,1.5448808,870.35,869.38,1.751]
[1757252993459,1.5448808,870.33,869.38,1.751]
[1757252994464,1.5448808,870.45,869.38,1.751]
[1757252994665,1.5448808,870.43,869.38,1.751]
[1757252995863,1.5448808,870.39,869.38,1.751]
[1757252997265,1.5448808,870.38,869.38,1.751]
[1757252997765,1.5448808,870.41,869.38,1.751]
[1757252999263,1.5448808,870.4,869.38,1.751]
[1757253000961,2.5770339,871.21,869.38,1.751]
[1757253001162,2.5770339,871.09,869.38,1.751]
[1757253001763,2.5770339,871.06,869.38,1.751]
[1757253002363,2.5770339,871.05,869.38,1.751]
[1757253002867,2.5770339,870.97,869.38,1.751]
[1757253003267,1.0302343,870.23,869.38,1.751]
[1757253003467,1.0302343,870.23,869.37,0.19961167]
[1757253003869,1.0302343,870.27,869.37,0.19961167]
[1757253004266,1.0302343,870.26,869.37,0.19961167]
[1757253004471,1.0302343,870.16,869.37,0.19961167]
[1757253004970,1.0302343,870.17,869.37,0.19961167]
[1757253006267,1.0302343,870.16,869.37,0.19961167]
[1757253006968,1.0302343,870.15,869.37,0.19961167]
[1757253007173,1.0302343,870.14,869.37,0.19961167]
[1757253007374,1.0302343,870.33,869.38,1.936]
[1757253007570,1.0302343,870.37,869.38,1.936]
[1757253008569,1.0302343,870.33,869.38,1.936]
[1757253008776,1.0302343,870.37,869.38,1.936]
[1757253012179,1.0302343,870.38,869.38,1.936]
[1757253012379,1.0302343,870.37,869.38,1.936]
[1757253013175,1.0302343,870.38,869.38,1.936]
[1757253013375,1.0302343,870.55,869.38,1.936]
[1757253014579,1.0302343,870.57,869.38,1.936]
[1757253016474,1.0302343,870.56,869.38,1.936]
[1757253017180,1.0302343,870.57,869.38,1.936]
[1757253017482,1.0302343,870.52,869.38,1.936]
[1757253018681,1.0302343,870.5,869.38,1.936]
[1757253019481,1.0302343,870.48,869.38,1.936]
[1757253023082,1.0302343,870.29,869.38,1.936]
[1757253023577,1.0302343,870.3,869.38,1.936]
[1757253024484,1.0302343,870.28,869.38,1.936]
[1757253024878,1.0302343,870.29,869.38,1.936]
[1757253025380,0.32117403,870.29,869.38,1.936]
[1757253025580,0.32117403,870.15,869.38,1.936]
[1757253025779,1.5454826,870.37,869.38,1.936]
[1757253026781,1.5454826,870.47,869.38,1.936]
[1757253026979,1.5454826,870.46,869.38,1.936]
[1757253027785,1.5454826,870.41,869.38,1.936]
[1757253031184,1.5454826,870.46,869.38,1.936]
[1757253031887,1.5454826,870.45,869.38,1.936]
[1757253032087,1.5454826,870.46,869.38,1.936]
[1757253034691,1.5454826,870.47,869.38,1.936]
[1757253035092,1.5454826,870.35,869.38,1.936]
[1757253035293,1.14397378,870.35,869.38,1.936]
[1757253035991,2.5770339,871.17,869.38,1.936]
[1757253036290,2.5770339,871.18,869.38,1.936]
[1757253037191,0.19967696,871.98,869.38,1.936]
[1757253037192,2.5770339,871.14,869.38,1.936]
[1757253037594,2.5770339,871.18,869.38,1.936]
[1757253038293,2.5770339,871.17,869.38,1.936]
[1757253039800,2.5770339,871.18,869.38,1.936]
[1757253041402,2.5770339,871.0,869.38,1.936]
[1757253041901,2.5770339,870.96,869.38,1.936]
[1757253042298,2.5770339,870.91,869.38,1.936]
[1757253042600,2.5770339,870.91,869.37,0.19961167]
[1757253043400,2.5770339,870.92,869.37,0.19961167]
[1757253043902,2.5770339,870.93,869.37,0.19961167]
[1757253044897,2.5770339,870.99,869.37,0.19961167]
[1757253045802,2.5770339,870.99,869.38,1.405]
[1757253046003,2.5770339,870.95,869.38,1.405]
[1757253047499,2.5770339,870.89,869.38,1.405]
[1757253048603,2.5770339,870.87,869.38,1.405]
[1757253049099,2.5770339,870.89,869.38,1.405]
[1757253049600,2.5770339,870.86,869.38,1.405]
[1757253050604,2.5770339,870.85,869.38,1.405]
[1757253051105,2.5770339,870.83,869.38,1.405]
[1757253052204,2.5770339,870.88,869.38,1.405]
[1757253053202,2.5770339,870.87,869.38,1.405]
[1757253053807,2.5770339,870.86,869.38,1.405]
[1757253054303,3.6058774,871.19,869.38,1.405]
[1757253054706,2.5770339,871.47,869.38,1.405]
[1757253055309,1.54571913,870.44,869.38,1.405]
[1757253055510,1.03047942,870.18,869.38,1.405]
[1757253057005,1.03047942,870.18,869.37,0.19961167]
[1757253057211,1.03047942,870.17,869.37,0.19961167]
[1757253058611,1.03047942,870.18,869.37,0.19961167]
[1757253060117,1.03047942,870.18,869.38,1.541]
[1757253062116,1.03047942,870.17,869.38,1.541]
[1757253063618,0.77352461,870.17,869.38,1.541]
[1757253063819,1.54571913,870.25,869.38,1.541]
[1757253064117,1.54571913,870.18,869.38,1.541]
[1757253064619,1.54571913,870.22,869.38,1.541]
[1757253064917,2.5770339,870.98,869.38,1.541]
[1757253064918,1.54571913,870.23,869.38,1.541]
[1757253065414,1.54571913,870.22,869.38,1.541]
[1757253065815,1.54571913,870.17,869.38,1.541]
[1757253066915,1.54571913,870.15,869.38,1.541]
[1757253068415,1.14148504,870.15,869.38,1.541]
[1757253068616,1.14148504,870.12,869.38,1.541]
[1757253068817,2.5770339,870.84,869.38,1.541]
[1757253069423,2.5770339,870.86,869.38,1.541]
[1757253069820,2.5770339,870.88,869.38,1.541]
[1757253070328,2.5770339,870.85,869.38,1.541]
[1757253071432,2.5770339,870.84,869.38,1.541]
[1757253071933,3.6058774,871.2,869.38,1.541]
[1757253071934,2.5770339,870.96,869.38,1.541]
[1757253072932,2.5770339,870.75,869.38,1.541]
[1757253073431,2.5770339,870.79,869.38,1.541]
[1757253074433,2.5770339,870.77,869.38,1.541]
[1757253076033,3.6058774,871.11,869.38,1.541]
[1757253076034,2.5770339,870.74,869.38,1.541]
[1757253079135,2.5770339,870.69,869.38,1.541]
[1757253081744,2.5770339,870.58,869.38,1.541]
[1757253081945,1.9276213,870.58,869.38,1.541]
[1757253082243,3.6058774,870.88,869.38,1.541]
[1757253082743,3.6058774,870.89,869.38,1.541]
[1757253083847,3.6058774,870.8,869.38,1.541]
[1757253084949,5.1512535,871.24,869.38,1.541]
[1757253085946,3.6058774,871.64,869.38,1.541]
[1757253086151,1.1461998,871.63,869.38,1.541]
[1757253086350,1.1461998,871.62,869.38,1.541]
[1757253086549,3.6058774,871.64,869.38,1.541]
[1757253086745,1.1461998,871.63,869.38,1.541]
[1757253087050,1.1461998,871.62,869.38,1.541]
[1757253087251,3.6058774,871.65,869.38,1.541]
[1757253087449,1.1461999,871.64,869.38,1.541]
[1757253087648,1.1461999,871.63,869.38,1.541]
[1757253087852,1.1461999,871.62,869.38,1.541]
[1757253088053,3.6058774,871.25,869.38,1.541]
[1757253088448,1.5450268,870.01,869.38,1.541]
[1757253089052,1.5450268,870.0,869.38,1.541]
[1757253089252,1.5450268,869.99,869.38,1.541]
[1757253089852,1.14982083,869.99,869.38,1.541]
[1757253090153,3.6058774,871.22,869.38,1.541]
[1757253090950,2.5735949,870.83,869.38,1.541]
[1757253091449,2.5735949,870.84,869.38,1.541]
[1757253092350,2.5735949,870.78,869.38,1.541]
[1757253093753,1.0288782,869.73,869.38,1.541]
[1757253094150,1.0288782,869.74,869.38,1.541]
[1757253094550,1.0288782,869.83,869.38,1.541]
[1757253095354,1.0288782,869.84,869.38,1.541]
[1757253096049,1.0288782,869.85,869.38,1.541]
[1757253097155,1.0288782,869.86,869.38,1.541]
[1757253097756,1.0288782,869.85,869.38,1.541]
[1757253097953,0.7745439,869.85,869.38,1.541]
[1757253098153,2.5735949,870.76,869.38,1.541]
[1757253099257,2.5735949,870.75,869.38,1.541]
[1757253101255,2.5735949,870.76,869.38,1.541]
[1757253102357,2.5735949,870.77,869.38,1.541]
[1757253102852,2.5735949,870.78,869.38,1.541]
[1757253103258,2.5735949,870.79,869.38,1.541]
[1757253103860,2.5735949,870.6,869.38,1.541]
[1757253104255,2.5735949,870.63,869.38,1.541]
[1757253104754,2.5735949,870.55,869.38,1.541]
[1757253105356,2.5735949,870.53,869.38,1.541]
[1757253106559,2.5735949,870.69,869.38,1.541]
[1757253107661,2.5735949,870.7,869.38,1.541]
[1757253109862,1.5405718,869.99,869.38,1.541]
[1757253110056,2.5735949,870.7,869.38,1.541]
[1757253110557,2.5735949,870.78,869.38,1.541]
[1757253111059,2.5735949,870.79,869.38,1.541]
[1757253112662,2.5735949,870.78,869.38,1.541]
[1757253113759,2.5735949,870.77,869.38,1.541]
[1757253114360,2.5735949,870.76,869.37,0.19961167]
[1757253114859,2.5735949,870.75,869.37,0.19961167]
[1757253116462,2.5735949,870.65,869.37,0.19961167]
[1757253116960,2.5735949,870.66,869.37,0.19961167]
[1757253117363,2.5735949,870.98,869.37,0.19961167]
[1757253117964,2.5735949,870.98,869.38,1.838]
[1757253120362,3.6058774,871.35,869.38,1.838]
[1757253120363,2.5735949,870.93,869.38,1.838]
[1757253121562,2.5735949,870.94,869.38,1.838]
[1757253122162,2.5735949,870.95,869.38,1.838]
[1757253123165,3.6058774,871.37,869.38,1.838]
[1757253123367,2.5735949,871.68,869.38,1.838]
[1757253123666,1.1463685,871.67,869.38,1.838]
[1757253123863,2.5735949,871.68,869.38,1.838]
[1757253123864,1.1463685,871.66,869.38,1.838]
[1757253124067,1.1463685,871.65,869.38,1.838]
[1757253124268,1.1463685,871.64,869.38,1.838]
[1757253124567,0.19967696,871.98,869.38,1.838]
[1757253124568,1.1463685,871.63,869.38,1.838]
[1757253124763,2.5735949,871.68,869.38,1.838]
[1757253124969,1.1463685,871.67,869.38,1.838]
[1757253125266,1.1463685,871.66,869.38,1.838]
[1757253125468,1.1463685,871.65,869.38,1.838]
[1757253125666,1.1463685,871.64,869.38,1.838]
[1757253125866,1.1463685,871.63,869.38,1.838]
[1757253126069,1.1463685,871.62,869.38,1.838]
[1757253126365,1.1463685,871.61,869.38,1.838]
[1757253126570,1.1463685,871.6,869.38,1.838]
[1757253126771,2.5735949,871.67,869.38,1.838]
[1757253127066,1.1463685,871.66,869.38,1.838]
[1757253127266,2.5735949,871.64,869.38,1.838]
[1757253127469,1.1463685,871.63,869.38,1.838]
[1757253127670,1.1463685,871.62,869.38,1.838]
[1757253127871,1.1463685,871.61,869.38,1.838]
[1757253128070,1.0272735,870.13,869.38,1.838]
[1757253129368,1.0272735,870.12,869.38,1.838]
[1757253131372,1.0272735,870.11,869.38,1.838]
[1757253132477,1.0272735,869.93,869.38,1.838]
[1757253132676,1.0272735,869.92,869.38,1.838]
[1757253133471,1.0272735,869.91,869.38,1.838]
[1757253133874,1.0272735,869.88,869.38,1.838]
[1757253134275,1.0272735,869.87,869.38,1.838]
[1757253134569,1.0272735,869.97,869.38,1.838]
[1757253136272,1.0272735,869.96,869.38,1.838]
[1757253136476,1.0272735,869.96,869.43,0.1997291]
[1757253136875,1.0272735,869.97,869.43,0.1997291]
[1757253137076,1.0272735,869.96,869.43,0.1997291]
[1757253137776,1.0272735,869.95,869.43,0.1997291]
[1757253138173,1.0272735,869.94,869.43,0.1997291]
[1757253139279,1.0272735,869.93,869.43,0.1997291]
[1757253139476,1.0272735,869.94,869.43,0.1997291]
[1757253139680,1.541152,870.03,869.43,0.1997291]
[1757253139976,1.541152,870.07,869.43,0.1997291]
[1757253140180,2.5735949,870.71,869.43,0.1997291]
[1757253140181,1.541152,870.06,869.43,0.1997291]
[1757253140375,1.541152,870.07,869.43,0.1997291]
[1757253140778,1.541152,870.06,869.43,0.1997291]
[1757253140977,1.541152,870.07,869.43,0.1997291]
[1757253141180,1.541152,870.06,869.43,0.1997291]
[1757253141785,1.541152,870.05,869.43,0.1997291]
[1757253142081,1.541152,870.06,869.43,0.1997291]
[1757253143182,1.541152,870.04,869.43,0.1997291]
[1757253143681,1.541152,870.05,869.43,0.1997291]
[1757253144082,1.541152,870.07,869.43,0.1997291]
[1757253144281,1.541152,870.05,869.43,0.1997291]
[1757253144485,1.541152,870.0,869.43,0.1997291]
[1757253145082,1.541152,869.99,869.43,0.1997291]
[1757253145485,1.541152,870.0,869.43,0.1997291]
[1757253146182,1.541152,869.97,869.43,0.1997291]
[1757253146885,1.541152,869.96,869.43,0.1997291]
[1757253147385,1.15827681,869.92,869.43,0.1997291]
[1757253147587,0.87052099,869.92,869.43,0.1997291]
[1757253148182,2.5735949,870.56,869.43,0.1997291]
[1757253148383,2.5735949,870.58,869.43,0.1997291]
[1757253149488,2.5735949,870.59,869.43,0.1997291]
[1757253149988,2.5735949,870.55,869.43,0.1997291]
[1757253151591,2.5735949,870.59,869.43,0.1997291]
[1757253152089,2.5735949,870.57,869.43,0.1997291]
[1757253152588,2.5735949,870.55,869.43,0.1997291]
[1757253154186,2.5735949,870.56,869.43,0.1997291]
[1757253154690,2.5735949,870.54,869.43,0.1997291]
[1757253156091,2.5735949,870.53,869.43,0.1997291]
[1757253156591,2.5735949,870.52,869.43,0.1997291]
[1757253157190,2.5735949,870.61,869.43,0.1997291]
[1757253159294,2.5735949,870.79,869.43,0.1997291]
[1757253161795,2.5735949,870.8,869.43,0.1997291]
[1757253164601,2.5735949,870.79,869.43,0.1997291]
[1757253165099,2.5735949,870.78,869.43,0.1997291]
[1757253167001,2.5735949,870.74,869.43,0.1997291]
[1757253167597,1.5444844,870.0,869.43,0.1997291]
[1757253167801,1.18355286,870.01,869.43,0.1997291]
[1757253168603,2.5735949,870.74,869.43,0.1997291]
[1757253169103,2.5735949,870.52,869.43,0.1997291]
[1757253169700,1.0296515,869.78,869.43,0.1997291]
[1757253170004,0.59742741,869.78,869.38,1.838]
[1757253173103,0.39770576,869.78,869.38,1.838]
[1757253175709,0.30992078,869.78,869.38,1.838]
[1757253175908,0.24151244,869.78,869.0,0.76785823]
[1757253176105,0.24151244,869.78,869.44,0.19968842]
[1757253176408,0.24151244,869.78,868.98,0.76785823]